Cogmind - Beta 15 @@@ ROGUE MODE // 2025.05.26 @ 20:30:53 Player: Polariusz Result: Destroyed by exploding Compression Vault Performance ------------- Evolutions (2) 1000 Regions Visited (5) 1000 Robots Destroyed (79) 395 Value Destroyed (2617) 2617 Prototype IDs (0) 0 Alien Tech Used (0) 0 Bonus (161) 161 TOTAL SCORE: 5173 Bonus ------- Follower Combat Kills 161 Cogmind --------- Core Integrity 0/550 Matter 289/300 Energy 800/800 System Corruption 2% Temperature Cool (0) Movement Treading (160) Location -8/Storage Parts ------- > --- POWER (1) -------- Hybrid Deuterium Engine > --- PROPULSION (2) --- Improved Treads Improved Treads > --- UTILITY (6) ------ Improved Heat Sink Improved Heat Sink Large Storage Unit Advanced Visual Processing Unit Advanced Targeting Computer Improved Light Armor Plating > --- WEAPON (2) ------- Plasma Cannon Plasma Cannon > --- INVENTORY (15) --- Hybrid Deuterium Engine Hybrid Deuterium Engine Armored Treads Armored Treads Armored Treads Compact Matter Pod (150) Hardened Medium Armor Plating Spread Laser Spread Laser Spread Laser Improved Grenade Launcher Improved Grenade Launcher Heavy Mace Explosive Trap Explosive Trap Peak State ------------ > --- POWER ------------ Hybrid Deuterium Engine > --- PROPULSION ------- Armored Treads Armored Treads > --- UTILITY ---------- Improved Heat Sink Improved Heat Sink Large Storage Unit Advanced Visual Processing Unit Advanced Targeting Computer Makeshift Light Armor Plating > --- WEAPON ----------- Plasma Cannon Plasma Cannon > --- INVENTORY -------- Hybrid Deuterium Engine Hybrid Deuterium Engine Light Treads Light Treads Heat Sink Compact Matter Pod Hardened Medium Armor Plating Spread Laser Spread Laser Spread Laser Improved Grenade Launcher Improved Grenade Launcher Heavy Mace Explosive Trap Explosive Trap [Rating: 38] Favorites ----------- Power Ion Engine Engine Ion Engine Power Core Nuclear Core Propulsion Light Treads Treads Light Treads Wheel Wheel Utility Large Storage Unit Device Improved Heat Sink Storage Large Storage Unit Processor Advanced Targeting Computer Protection Makeshift Light Armor Plating Weapon Pulse Rifle Energy Gun Pulse Rifle Energy Cannon Plasma Cannon Ballistic Gun Assault Rifle Ballistic Cannon Slug Cannon Launcher Improved Grenade Launcher Impact Weapon Heavy Mace Build | -11 -10 -10 -10 -8 -8 ------- Run | Yrd Mat Min Sub Mat Sto Slots Evolved 4 | . . . . 4 . Power . | . . . . . . Propulsion . | . . . . . . Utility 4 | . . . . 4 . Weapon . | . . . . . . Parts Attached 64 | 7 11 1 8 34 3 Power 7 | 1 2 . 1 3 . Engine 6 | 1 2 . 1 2 . Core 1 | . . . . 1 . Reactor . | . . . . . . Propulsion 15 | 2 2 1 2 6 2 Treads 11 | . 2 1 . 6 2 Leg . | . . . . . . Wheel 4 | 2 . . 2 . . Hover . | . . . . . . Flight . | . . . . . . Utility 19 | 1 3 . 1 14 . Device 6 | . . . . 6 . Storage 3 | 1 1 . . 1 . Processor 4 | . . . . 4 . Hackware . | . . . . . . Protection 6 | . 2 . 1 3 . Artifact . | . . . . . . Weapon 23 | 3 4 . 4 11 1 Energy Gun 7 | 1 . . 1 5 . Energy Cannon 2 | . . . . 2 . Ballistic Gun 5 | 2 3 . . . . Ballistic Cannon 4 | . . . 1 3 . Launcher 4 | . 1 . 2 . 1 Special Weapon . | . . . . . . Impact Weapon 1 | . . . . 1 . Slashing Weapon . | . . . . . . Piercing Weapon . | . . . . . . Special Melee Weapon . | . . . . . . Unidentified Prototypes . | . . . . . . Parts Lost 14 | . 3 . 1 10 . Power 2 | . . . 1 1 . Propulsion 4 | . 2 . . 2 . Utility 4 | . . . . 4 . Weapon 4 | . 1 . . 3 . Highest Loss Streak 7 | . 2 . 1 7 . To Critical Strikes . | . . . . . . Average Backups 11 | 3 7 10 12 11 13 Power 1 | 1 2 2 2 1 2 Propulsion 1 | 1 1 2 2 1 2 Utility 2 | . 1 2 3 2 2 Weapon 4 | . 1 2 4 5 6 Tool/Special . | . . . . . . Unused Backups 15 | . . 1 . 7 7 Power 5 | . . 1 . 2 2 Propulsion 5 | . . . . 3 2 Utility 4 | . . . . 2 2 Weapon 1 | . . . . . 1 Tool/Special . | . . . . . . Average Slot Usage (%) 96 | . 92 100 99 94 99 Engine 10 | . 14 14 13 6 9 Treads 21 | . 24 28 27 14 17 Wheel 1 | . 3 . . 2 . Device 6 | . . . . 11 18 Storage 11 | . 14 14 14 9 9 Processor 9 | . . . . 20 18 Protection 10 | . 8 14 14 8 9 Energy Gun 8 | . 4 . 13 9 . Energy Cannon 2 | . . . . 2 17 Ballistic Gun 7 | . 21 28 6 . . Ballistic Cannon 4 | . . . 7 5 . Peak Build Rating 38 | 6 7 11 19 38 37 Average Rating 20 | 3 6 9 16 26 35 On Entrance 13 | . 6 7 11 19 37 Naked Turns . | . . . . . . Heaviest Build 47 | 11 29 29 39 47 46 Greatest Support 46 | 26 40 42 42 42 46 Greatest Overweight (x) 2 | . . . 1 2 1 Average Overweight (x) . | . . . . . . Largest Inventory Capacity 15 | 8 15 15 15 15 15 Average Capacity 14 | 7 8 15 15 15 15 Most Carried 15 | 5 8 15 15 15 15 Average Carried 13 | 3 7 12 14 13 14 Final Capacity 15 | 8 15 15 15 15 15 Final Carried 15 | 4 7 15 15 15 15 Class Distribution -------------------- 90% | Mutant 8% | Scavenger-Mutant Dominant Class ---------------- Mutant | -10/Materials Mutant | -10/Mines Mutant | -10/Subcaves Mutant | -8/Materials Mutant | -8/Storage Resources | -11 -10 -10 -10 -8 -8 ----------- Run | Yrd Mat Min Sub Mat Sto Matter Collected 2140 | 217 208 320 353 982 60 Remotely . | . . . . . . Salvage Created 2283 | . 279 . 280 1071 653 Parts 147 | . 34 . 19 61 33 Haulers Intercepted . | . . . . . . Recyclers Shooed 1 | . . . . 1 . Parts Field Recycled . | . . . . . . Retrieved Matter . | . . . . . . Parts Self-Destructed 14 | . . . 14 . . Prevented . | . . . . . . Kills | -11 -10 -10 -10 -8 -8 ------- Run | Yrd Mat Min Sub Mat Sto Combat Hostiles Destroyed 66 | . 13 . 12 27 14 Guns 25 | . 7 . 6 12 . Cannons 33 | . . . 6 14 13 AOE 6 | . 6 . . . . Classes Destroyed 13 | . 5 . 3 5 . Worker 1 | . 1 . . . . Builder 1 | . . . . 1 . Recycler 3 | . 1 . . 2 . Turret 1 | . . . 1 . . Watcher 7 | . 2 . . 4 1 Swarmer 18 | . 11 . 4 . 3 Grunt 22 | . 2 . 1 13 6 Duelist 1 | . . . . 1 . Sentry 12 | . . . . 8 4 Specialist 2 | . . . . 2 . Hunter 4 | . . . . 3 1 Artisan 1 | . . . 1 . . Subdweller 7 | . . . 7 . . Best Kill Streak 5 | . 5 . 3 5 3 Combat Bots Only 5 | . 3 . 3 5 3 Max Kills in Single Turn 2 | . 2 . 1 1 1 Gunslinging 1 | . 1 . . . . Exploded 2 | . 2 . . . . Melee . | . . . . . . Uniques/NPCs Destroyed . | . . . . . . Combat | -11 -10 -10 -10 -8 -8 -------- Run | Yrd Mat Min Sub Mat Sto Hostile Shots Fired 401 | . 64 . 98 175 64 Missed 113 | . 16 . 35 48 14 Hits 288 | . 48 . 63 127 50 Melee 1 | . . . . 1 . Projectile 287 | . 48 . 63 126 50 Critical Strikes 9 | . . . 1 8 . Damage Taken 4511 | . 603 . 632 2543 733 Core 762 | . 86 . 90 388 198 Absorbed by Shields . | . . . . . . Regen/Repaired (Parts) 203 | . 49 . . 154 . Core Remaining (%) 64 | 100 . . 29 . . Volleys Fired 250 | . 49 . 36 128 37 Largest 2 | . 2 . 2 2 2 Hottest 160 | . 60 . 103 130 160 Shots Fired 467 | . 94 . 70 231 72 Gun 236 | . 89 . 45 102 . Cannon 220 | . . . 19 129 72 Launcher 11 | . 5 . 6 . . Special . | . . . . . . Kinetic 236 | . 74 . 33 129 . Thermal 205 | . . . 31 102 72 Explosive 11 | . 5 . 6 . . Electromagnetic 15 | . 15 . . . . Robot Hit Streak 19 | . 8 . 12 19 19 Robot Miss Streak 6 | . 6 . 3 3 3 Penetration Max . | . . . . . . Secondary Targets 3 | . 2 . . 1 . Max Gunslinging Chain 1 | . 1 . . 1 . Shots Hit Robots 334 | . 46 . 50 183 55 Core Hits 187 | . 24 . 26 117 20 Critical Kills 5 | . . . 3 1 1 Critical Parts Destroyed 5 | . . . 3 2 . Critical Strikes 18 | . . . 9 8 1 Burn 4 | . . . 1 3 . Meltdown 1 | . . . . . 1 Destroy 11 | . . . 8 3 . Blast 2 | . . . . 2 . Melee Attacks 1 | . . . . 1 . Impact 1 | . . . . 1 . Slashing . | . . . . . . Piercing . | . . . . . . Sneak Attacks . | . . . . . . Combat Hostiles . | . . . . . . Follow-up Attacks . | . . . . . . Damage Inflicted 6752 | . 1005 . 1027 3244 1476 Guns 2382 | . 491 . 448 1443 . Cannons 3649 | . . . 372 1801 1476 Explosions 721 | . 514 . 207 . . Melee . | . . . . . . Ramming . | . . . . . . Kinetic 2694 | . 412 . 481 1801 . Thermal 3337 | . 79 . 339 1443 1476 Explosive 642 | . 435 . 207 . . Electromagnetic 79 | . 79 . . . . Impact . | . . . . . . Slashing . | . . . . . . Piercing . | . . . . . . Highest Corruption 2 | . . . . . 2 Average Corruption 1 | . . . . . 1 Corruption Purged . | . . . . . . Corruption Blocked . | . . . . . . Effects 5 | . . . . . 5 Matter Fused 2 | . . . . . 2 Data Loss (major) 2 | . . . . . 2 Weapon Failures 1 | . . . . . 1 Overload Shots . | . . . . . . Overflow Damage 98 | . 64 . 5 7 22 Projectiles 29 | . . . . 7 22 Explosions 69 | . 64 . 5 . . Melee . | . . . . . . Knockbacks 25 | . . . 2 23 . Impact . | . . . . . . Kinetic 23 | . . . 2 21 . Secondary 2 | . . . . 2 . Self-Inflicted Damage 100 | . 100 . . . . Shots 3 | . 3 . . . . Rammed . | . . . . . . Targets Rammed . | . . . . . . Kicked . | . . . . . . Crushed . | . . . . . . Highest Temperature 141 | . 118 . 51 141 102 Average Temperature 38 | . 30 . 24 44 37 Received Heat Transfer 1359 | . 84 . 294 747 234 Siege Activations . | . . . . . . Martial Activations . | . . . . . . Shielding Activations . | . . . . . . Robots Disrupted . | . . . . . . Combat Hostiles . | . . . . . . Robots Corrupted . | . . . . . . Combat Hostiles . | . . . . . . Parts Fried 1 | . 1 . . . . Impact Corruptions . | . . . . . . Robots Melted 2 | . . . . 1 1 Combat Hostiles 2 | . . . . 1 1 Parts Melted 5 | . . . . 1 4 Heat Transferred 6676 | . 150 . 814 2812 2900 Parts Sabotaged . | . . . . . . Parts Stolen . | . . . . . . Parts Stripped . | . . . . . . Power Chain Reactions 1 | . 1 . . . . Alert | -11 -10 -10 -10 -8 -8 ------- Run | Yrd Mat Min Sub Mat Sto Maximum Alert Level 1 | . . . . 1 1 Low Security (%) 92 | 100 100 100 . 86 93 Level 1 7 | . . . . 13 6 Level 2 . | . . . . . . Level 3 . | . . . . . . Level 4 . | . . . . . . Level 5 . | . . . . . . High Security . | . . . . . . Max Security . | . . . . . . Peak Influence 281 | . 126 16 . 278 281 Initial 103 | . . 16 . . 103 Average 80 | . 48 . . 110 107 Influence Increases 2158 | . 419 . 323 862 554 Destroy 0b10 Robot/C 1300 | . 260 . 140 540 360 Destroy 0b10 Robot/NC 60 | . 20 . . 35 5 Destroy Leader 304 | . 44 . . 168 92 Allied During Kill 65 | . . . 3 . 62 Successful Hack 43 | . 31 . . 4 8 Disable Machine 30 | . 15 . . 15 . Destroy Structure 56 | . 34 . . 10 12 Lose Combat Pursuer 300 | . 15 . 180 90 15 Influence Decreases 1897 | . 377 42 323 616 539 Entered New Map 169 | . . 26 . . 143 Time Decay 1538 | . 347 16 303 516 356 Lost Part 130 | . 30 . . 100 . Lost Ally 60 | . . . 20 . 40 Squads Dispatched 5 | . . . . 4 1 Investigation 1 | . . . . 1 . Extermination . | . . . . . . Reinforcement 4 | . . . . 3 1 Assault . | . . . . . . Garrison . | . . . . . . Intercept . | . . . . . . Searches Triggered . | . . . . . . Construction Impeded . | . . . . . . Haulers Reinforced . | . . . . . . Active Scanning Responses . | . . . . . . Cargo Convoy Interrupts . | . . . . . . Stealth | -11 -10 -10 -10 -8 -8 --------- Run | Yrd Mat Min Sub Mat Sto Distress Signals 8 | . 2 . . 5 1 Communications Jammed . | . . . . . . Distress Signals . | . . . . . . Times Spotted 121 | . 20 . 25 49 27 Peak Tracking Total 6 | . 4 . 6 4 5 Tactical Retreats 13 | . 1 . 7 4 1 Traps | -11 -10 -10 -10 -8 -8 ------- Run | Yrd Mat Min Sub Mat Sto Traps Triggered 7 | . 2 1 . 2 2 Indirectly . | . . . . . . Trap Hack Attempts . | . . . . . . Triggered . | . . . . . . Disarmed . | . . . . . . Reprogrammed . | . . . . . . Reused . | . . . . . . Traps Extracted . | . . . . . . Installed . | . . . . . . Triggered . | . . . . . . Most Traps Carried 3 | . . 3 3 2 2 Machines | -11 -10 -10 -10 -8 -8 ---------- Run | Yrd Mat Min Sub Mat Sto Machines Disabled 5 | . 1 . 3 1 . Max in Single Turn 2 | . 1 . 2 1 . Machines Repaired . | . . . . . . Machines Dismantled . | . . . . . . Machines Sabotaged . | . . . . . . Overloaded Fab Kills . | . . . . . . Hacking | -11 -10 -10 -10 -8 -8 --------- Run | Yrd Mat Min Sub Mat Sto Machines Accessed 16 | . 8 1 . 3 4 Terminals 13 | . 7 . . 2 4 Fabricators . | . . . . . . Repair Stations 2 | . 1 . . 1 . Recycling Units . | . . . . . . Scanalyzers . | . . . . . . Garrison Access . | . . . . . . Total Hacks 38 | . 22 1 . 9 6 Successful 24 | . 15 1 . 5 3 Failed 14 | . 7 . . 4 3 Catastrophic 1 | . 1 . . . . Database Lockouts . | . . . . . . Manual 27 | . 19 . . 5 3 Terminals 33 | . 20 . . 7 6 Fabricators . | . . . . . . Repair Stations 4 | . 2 . . 2 . Recycling Units . | . . . . . . Scanalyzers . | . . . . . . Garrison Access . | . . . . . . Terminal Hacks 7 | . 2 1 . 1 3 Open Door 3 | . . 1 . . 2 Terminal Index 1 | . 1 . . . . Alert Level 1 | . . . . . 1 Locate Traps 2 | . 1 . . 1 . Fabricator Hacks . | . . . . . . Repair Station Hacks 4 | . 2 . . 2 . Scan Component 2 | . 1 . . 1 . Repair 2 | . 1 . . 1 . Recycling Unit Hacks . | . . . . . . Scanalyzer . | . . . . . . Garrison Access Hacks . | . . . . . . Unauthorized Hacks 13 | . 11 . . 2 . Terminals 13 | . 11 . . 2 . Track 5 | . 5 . . . . Botnet 8 | . 6 . . 2 . Fabricators . | . . . . . . Repair Stations . | . . . . . . Recycling Units . | . . . . . . Scanalyzers . | . . . . . . Garrison Access . | . . . . . . Data Cores Recovered . | . . . . . . Used . | . . . . . . Hacking Detections 10 | . 6 . . 2 2 Full Trace Events 1 | . 1 . . . . Feedback Events . | . . . . . . Feedback Blocked . | . . . . . . Robot Schematics Acquired . | . . . . . . Robots Built . | . . . . . . Authchips . | . . . . . . Time . | . . . . . . Total Robot Build Rating . | . . . . . . Part Schematics Acquired . | . . . . . . Parts Built . | . . . . . . Authchips . | . . . . . . Time . | . . . . . . Total Part Build Rating . | . . . . . . Parts Repaired 2 | . 1 . . 1 . Time 70 | . 26 . . 44 . Parts Recycled . | . . . . . . Recycled Matter . | . . . . . . Retrieved Matter . | . . . . . . Retrieved Components . | . . . . . . Parts Scanalyzed . | . . . . . . Part Schematics Acquired . | . . . . . . Parts Damaged . | . . . . . . Bothacking | -11 -10 -10 -10 -8 -8 ------------ Run | Yrd Mat Min Sub Mat Sto Used RIF Installer . | . . . . . . Robots Hacked . | . . . . . . Non-combat . | . . . . . . Combat . | . . . . . . Robot Hacks Applied . | . . . . . . Relay Couplers Released . | . . . . . . Fabnet Peak Effective % . | . . . . . . Robots Rewired . | . . . . . . Allies Hacked . | . . . . . . Hacks Repelled . | . . . . . . Allies | -11 -10 -10 -10 -8 -8 -------- Run | Yrd Mat Min Sub Mat Sto Total Allies 13 | . . 3 . . 10 Largest Group 10 | . . 3 3 . 10 Highest-Rated Group 173 | . . 40 40 . 173 Highest-Rated Ally 29 | . . 16 16 . 29 Total Orders . | . . . . . . Ally Attacks 47 | . . . 25 . 22 Total Damage 338 | . . . 85 . 253 Kills 5 | . . . 1 . 4 Allies Corrupted . | . . . . . . Allies Melted . | . . . . . . Intel | -11 -10 -10 -10 -8 -8 ------- Run | Yrd Mat Min Sub Mat Sto Active Infowar (turns) 3555 | . . . . 2754 801 Optics 3555 | . . . . 2754 801 ECM 279 | . . . . 279 . Robot Analysis Total . | . . . . . . Derelict Logs Recovered 3 | . . 1 2 . . Drone Launches . | . . . . . . Drone Recoveries . | . . . . . . Exploration | -11 -10 -10 -10 -8 -8 ------------- Run | Yrd Mat Min Sub Mat Sto Turns Passed 7629 | 48 1060 831 2103 2786 801 Spaces Moved 3975 | 40 574 510 1270 1272 309 Core 12 | 12 . . . . . Treads 3550 | . 489 510 1258 984 309 Legs . | . . . . . . Wheels 413 | 28 85 . 12 288 . Hover . | . . . . . . Flight . | . . . . . . Fastest Speed 50 | 50 90 152 95 95 160 Average Speed 154 | 78 149 155 151 159 162 Slowest Speed 250 | 90 160 160 152 250 250 Overloaded Moves . | . . . . . . Propulsion Burnouts . | . . . . . . Robots Hopped . | . . . . . . Potential Cave-ins . | . . . . . . Cave-ins Triggered . | . . . . . . Exploration Rate (%) 62 | 3 87 88 64 83 49 Regions Visited 5 Branch Regions 3 Pre-discovered Areas 4 | . . . 3 . 1 Known Exits Taken . | . . . . . . Unknown Exits Taken 5 | 1 1 1 1 1 . Scrap Searched 5 | . . 2 3 . . Spaces Dug . | . . . . . . Terrain Destroyed 83 | . 47 . 20 8 8 Melee . | . . . . . . Projectile 21 | . . . 5 8 8 AOE 62 | . 47 . 15 . . Terrain Rammed . | . . . . . . Walls Destroyed . | . . . . . . Machines Disabled . | . . . . . . Actions | -11 -10 -10 -10 -8 -8 --------- Run | Yrd Mat Min Sub Mat Sto Total 5008 | 57 692 550 1375 1801 533 Wait 586 | . 38 27 53 291 177 Move 3970 | 39 573 509 1269 1271 309 Hop . | . . . . . . Pick Up 71 | 10 10 10 2 38 1 Fast Attach 6 | . 1 1 . 2 2 Attach 34 | 7 6 . 1 20 . Detach 1 | 1 . . . . . Swap 46 | . 8 1 12 21 4 Drop 43 | . 7 2 2 29 3 Fire 250 | . 49 . 36 128 37 Melee 1 | . . . . 1 . Ram . | . . . . . . Kick . | . . . . . . Crush . | . . . . . . Escape Stasis . | . . . . . . Rewire . | . . . . . . Trap . | . . . . . . Miscellaneous . | . . . . . . Route ------- -11/Scrapyard -10/Materials (discovered 3 exits: [*Mat x2] / *Min) -10/Mines (discovered 3 exits: [*Mat x2] / [*Sub]) -10/Subcaves (discovered 2 exits: *Mat / [*Rec]) -8/Materials (discovered 4 exits: [*Fac x2] / *Sto x2) -8/Storage History --------- Turn | Location | Event 11 | -11/Scrapyard | Discovered new exit (range 16) 49 | -11/Scrapyard | Entered Materials 302 | -10/Materials | Build established: Mutant 528 | -10/Materials | Repaired Grenade Launcher 628 | -10/Materials | Discovered new exit (range 5) 895 | -10/Materials | Discovered new exit (range 13) 1016 | -10/Materials | Discovered new exit (range 5) 1109 | -10/Materials | Entered Mines 1247 | -10/Mines | Found a hidden stash of uninstalled traps 1301 | -10/Mines | Discovered new exit (range 9) 1311 | -10/Mines | Received a Rocket Launcher from a helpful Derelict 1336 | -10/Mines | Discovered new exit (range 14) 1376 | -10/Mines | Learned Materials terminal intel 1471 | -10/Mines | Met a Derelict who couldn't figure out how to use a Trap Extractor 1683 | -10/Mines | Assisted by bots powering up and referring to "LRC-V3" 1713 | -10/Mines | Discovered new exit (range 10) 1940 | -10/Mines | Entered Subcaves 1940 | -10/Subcaves | Accompanied by 3 allies 1972 | -10/Subcaves | Learned location of Storage (-8) 1974 | -10/Subcaves | Learned location of Zion (-6) 2062 | -10/Subcaves | Lost 3 allies 2379 | -10/Subcaves | Core integrity fell below 50% 2656 | -10/Subcaves | A swath of the cavern ceiling suddenly collapsed 2796 | -10/Subcaves | Discovered new exit (range 14) 3120 | -10/Subcaves | Met a Zionite searching for "candidates" 3186 | -10/Subcaves | Shifting Twisted Machinery released Sub. Optics 3909 | -10/Subcaves | Discovered new exit (range 11) 4043 | -10/Subcaves | Entered Materials 4043 | -8/Materials | Evolved 4 slots: Utility x4 4044 | -8/Materials | Loaded intel: 12 terminal locations 4668 | -8/Materials | Repaired Mak. Light Armor Plating 4881 | -8/Materials | Discovered new exit (range 13) 4958 | -8/Materials | Build established: Scavenger-Mutant 5293 | -8/Materials | Core integrity fell below 50% 5343 | -8/Materials | Lost 7 parts (1p2n2u2w) 5407 | -8/Materials | Build established: Mutant 5719 | -8/Materials | Discovered new exit (range 7) 6181 | -8/Materials | Discovered new exit (range 19) 6566 | -8/Materials | Discovered new exit (range 6) 6829 | -8/Materials | Entered Storage 7070 | -8/Storage | Learned location of Armory (-3) 7293 | -8/Storage | Core integrity fell below 20% 7552 | -8/Storage | Assisted by bots powering up and referring to "LRC-V3" 7630 | -8/Storage | Destroyed by exploding Compression Vault Last Messages --------------- 07618_ U-05 Engineer builds a Wall. 07618_ K-01 Serf collects debris. 07619_ U-05 Engineer lays Concrete. 07620_ Trooper 3b destroyed. 07620_ U-05 Engineer lays Concrete. 07621_ G-47 Trooper heat spikes uncontrollably. 07621_ G-47 Trooper overheating. 07621_ U-05 Engineer lays Concrete. 07622_ G-47 Trooper overheating. 07624_ R-06 Scavenger collects Lgt. Nuclear Core. 07625_ U-05 Engineer builds a Door. 07628_ System corrupted: Matter fused (-6). 07628_ B-36 Bruiser destroyed. 07629_ U-05 Engineer lays Concrete. 07629_ K-01 Serf collects debris. 07630_ Compression Vault explodes. 07630_ Trooper 3i destroyed. 07630_ G-47 Trooper destroyed. 07630_ Trooper 3f destroyed. Map ----- +----------------------------------------------------+ | | | | | ????????????????????????????????????????????? | | ????????????????????????????????????????????? | | ????????????????????????????????????????????? | | ????????????????????????????????????????????? | | ????????????????????????????????????????????? | | ????????????????????????????????????????????? | | ????????????????????????????????????????????? | | ????????????????????????????????????????????? | | ????????????????????????????????????????????? | | ????????????????????????????????????????????? | | ????????????????????????????????????????????? | | ????????????????????????????????????????????? | | ???????????????????##???????????????????????? | | ?????????????????###"T"####""""?????????????? | | ?????????????????# g ## #?????????????? | | ?????????????????# """ #T #?????????????? | | ?????????????????# """u## #??#######????? | | ?????????????????# gg""" ## # [ #????? | | ?????????????????# u%g= ## + #????? | | ????????????????## [g # ! #????? | | ????????????????# !% # # #????? | | ??????????? ??## *% %= # #? #????? | | ??????????? ???# [=!%g= # #?? ! #????? | | ??????????# ???####### @ # # #????? | | ??????????# ????????# u + #????? | | ??????????# ????????# # #????? | | ??????????# ????????# r###u###########????? | | ??????????# ???######m # #????????? | | ??????????# ???# T## k/%% #????????? | | ??????????# ???# + # !! #????????? | | ??????????# #??# # # % !! #????????? | | ??????????# #??# # # !! #????????? | | ??????????+ #??# ## # #????????? | | ??????????# #??###### # #???????? | | ??????????# #???????# # ##???????? | | ??????????# #???????# ###########????????? | | ??????????# #???#####+#####???????????????? | | ??????????# #?### #???????????????? | | ??????????# [##### """ #???????????????? | | ??????????# =*=%+ "?"""" #???????????????? | | ??????????# %##### "????" #???????????????? | | ??????????# #??## "????" #???????????????? | | ??????????# #???# """"?" #???????????????? | | ??????????# #???# """ #???????????????? | | ??????????# #???# #???????????????? | | ??????????# ##??###########???????????????? | | ??????????# #?????????????????????????????? | | ??????????#% #?????????????????????????????? | +----------------------------------------------------+ Best States ------------- Heat Dissipation 59 Energy Generation 14 Energy Capacity 800 Matter Stores 300 Matter Capacity 300 Sight Range 20 Terrain Scan Density 10 ECM Strength 1 Armor Coverage 225 Evasion (%) 50 Targeting Accuracy 13 Recoil Reduction 2 Item Schematics ----------------- None Robot Schematics ------------------ None Fabricated ------------ Nothing Repaired ---------- Grenade Launcher | 18% | -10/Materials Mak. Light Armor Plating | 48% | -8/Materials Alien Tech Used ----------------- None Achievements -------------- root@ Challenges ------------ None Game ------ Seed BombardmentGhostCanceller Manual? 0 Play Time 00:54:38 Cumulative 46.2 hours Start 2025.05.25 @ 22:42:36 End 2025.05.26 @ 20:30:53 Sessions 3 Manual Loads 0 Difficulty Rogue Special Mode None Game No. 49 Rogue 49 Adventurer 0 Explorer 0 Win Type - Total 1 Types 1/0/0/0/0/0/0/0/0/0 Lore% 25 Gallery% 30 Achievement% 29 Wizard Run 0 Options --------- Layout 1 ASCII 0 Keyboard 0 Movement Mouse Keybinds 0 Fullscreen 1 Font 24/Smallcaps Map View 50x35 Zoom Use 0% Tactical HUD 1 Map Filters NONE Filters NONE Steam 1 RUN: aa1acbc8-4f02-4b30-a170-26809d035d45